bitfinex/quotes_SOLUSD_20241113
["timestamp","ask_amount","ask_price","bid_price","bid_amount"]
[1731513027427,36.76885456,215.78,215.57,46.2116]
[1731513027623,36.76885456,215.78,215.74,161.97451]
[1731513027843,36.76885456,215.78,215.58,23.902374]
[1731513028050,36.76885456,215.84,215.6,23.776884]
[1731513028229,36.76885456,215.86,215.62,0.2]
[1731513028442,0.4495152,215.88,215.67,0.1]
[1731513028443,37.21836976,215.88,215.67,0.1]
[1731513028631,37.21836976,215.88,215.65,0.12549]
[1731513028632,36.76885456,215.86,215.66,23.776884]
[1731513029042,41.85066976,215.88,215.67,0.1]
[1731513029262,41.85066976,215.88,215.67,0.22549]
[1731513029529,36.76885456,215.84,215.67,0.22549]
[1731513029743,0.12549,215.81,215.59,0.1]
[1731513030049,0.12549,215.81,215.55,0.1]
[1731513030050,36.76885456,215.76,215.57,46.2116]
[1731513030755,20.0,215.75,215.57,46.2116]
[1731513031230,20.0,215.77,215.58,0.12549]
[1731513031432,41.40195456,215.84,215.62,0.1]
[1731513031631,41.40195456,215.84,215.58,20.12549]
[1731513031632,36.76885456,215.78,215.58,0.12549]
[1731513031937,0.1,215.82,215.57,46.2116]
[1731513031938,36.76885456,215.72,215.57,46.2116]
[1731513032131,36.76885456,215.74,215.57,46.2116]
[1731513032333,36.76885456,215.72,215.57,46.2116]
[1731513032639,20.0,215.75,215.57,46.2116]
[1731513032842,20.0,215.73,215.57,46.2116]
[1731513033154,0.12549,215.72,215.57,46.2116]
[1731513033334,20.0,215.71,215.57,46.2116]
[1731513035142,20.0,215.69,215.57,46.2116]
[1731513035339,4.6364,215.68,215.57,46.2116]
[1731513035546,36.89434456,215.68,215.57,33.1872]
[1731513035741,20.0,215.67,215.57,33.1872]
[1731513036057,36.76885456,215.68,215.48,13.1376]
[1731513036058,20.0,215.59,215.48,45.9669]
[1731513036634,20.0,215.61,215.48,45.9669]
[1731513037743,20.0,215.63,215.49,23.902374]
[1731513037930,20.0,215.63,215.51,23.776884]
[1731513038139,20.0,215.63,215.49,23.902374]
[1731513038346,20.0,215.65,215.49,23.902374]
[1731513038541,36.76885456,215.66,215.49,23.902374]
[1731513038759,20.0,215.65,215.49,23.902374]
[1731513039366,20.0,215.65,215.48,45.9669]
[1731513039367,4.6348,215.76,215.52,0.1]
[1731513039541,42.19132417,215.78,215.53,23.876884]
[1731513039741,36.76885456,215.76,215.55,23.776884]
[1731513039941,36.76885456,215.74,215.55,23.776884]
[1731513040143,36.76885456,215.76,215.55,23.776884]
[1731513040664,0.12549,215.75,215.55,23.776884]
[1731513040850,36.76885456,215.74,215.55,23.776884]
[1731513041171,4.6354,215.73,215.55,23.776884]
[1731513041465,36.89434456,215.72,215.55,23.776884]
[1731513041643,36.89434456,215.72,215.48,50.48022301]
[1731513041644,36.76885456,215.65,215.48,45.9669]
[1731513041963,20.0,215.67,215.48,45.9669]
[1731513041964,20.0,215.7,215.49,0.12549]
[1731513042135,36.76885456,215.73,215.49,7.23989265]
[1731513042341,36.76885456,215.69,215.48,45.9669]
[1731513042547,36.76885456,215.69,215.49,0.1]
[1731513042955,36.76885456,215.75,215.5,20.1]
[1731513043162,0.98677777,215.81,215.5,20.1]
[1731513043163,0.78677777,215.81,215.56,0.1]
[1731513043375,4.6336,215.82,215.58,23.776884]
[1731513043661,36.76885456,215.83,215.59,6.28664883]
[1731513043846,41.40225456,215.83,215.6,23.776884]
[1731513044240,36.76885456,215.79,215.6,23.776884]
[1731513044446,36.76885456,215.79,215.61,0.12549]
[1731513044948,36.76885456,215.77,215.6,23.776884]
[1731513045152,36.76885456,215.75,215.58,23.776884]
[1731513045363,36.76885456,215.77,215.59,0.12549]
[1731513045571,20.0,215.78,215.59,0.12549]
[1731513045776,20.0,215.8,215.61,23.776884]
[1731513045979,36.76885456,215.87,215.62,51.8521]
[1731513046181,36.76885456,215.93,215.68,23.876884]
[1731513046385,36.76885456,215.93,215.72,0.12549]
[1731513046552,36.76885456,215.93,215.72,23.902374]
[1731513046871,36.79885456,215.97,215.74,0.1]
[1731513047070,36.79885456,215.97,215.95,161.6504848]
[1731513047277,36.79885456,215.97,215.75,11.42950586]
[1731513047278,0.03,215.97,215.76,23.776884]
[1731513047570,0.03,215.97,215.81,23.776884]
[1731513047775,0.03,215.97,215.83,23.776884]
[1731513048067,36.76885456,216.06,215.85,23.776884]
[1731513048275,36.76885456,216.06,215.86,6.27871324]
[1731513048479,36.76885456,216.06,215.88,0.12549]
[1731513048653,36.76885456,216.02,215.88,0.12549]
[1731513049055,0.4495152,216.09,215.88,0.12549]
[1731513049318,0.4495152,216.09,215.93,20.0]
[1731513049584,0.4495152,216.09,215.94,23.776884]
[1731513049760,0.4495152,216.09,215.94,30.47414394]
[1731513050074,0.4495152,216.09,215.94,23.776884]
[1731513050554,0.4495152,216.09,215.97,0.12549]
[1731513051583,37.21836976,216.09,215.89,32.4279]
[1731513051882,20.0,216.02,215.89,32.4279]
[1731513052053,36.76885456,216.03,215.89,32.4279]
[1731513052249,20.0,216.08,215.89,32.4279]
[1731513052451,20.0,216.02,215.89,32.4279]
[1731513052673,20.0,216.0,215.89,32.4279]
[1731513053186,20.0,216.0,215.9,0.12549]
[1731513053469,20.0,216.02,215.9,0.12549]
[1731513053777,20.0,216.02,215.89,32.4279]
[1731513053953,20.0,216.02,215.9,23.776884]
[1731513054356,20.0,216.02,215.89,32.4279]
[1731513054676,20.0,216.0,215.9,23.776884]
[1731513054878,36.76885456,216.05,215.9,23.776884]
[1731513055178,36.76885456,216.05,215.82,12.1768]
[1731513055179,36.76885456,215.98,215.82,12.1768]
[1731513055365,36.76885456,216.0,215.83,0.12549]
[1731513055564,4.6267,216.14,215.83,1.05165174]
[1731513055753,36.76885456,216.06,215.83,0.12549]
[1731513055949,5.0773152,216.09,215.83,0.12549]
[1731513055950,36.76885456,216.04,215.83,0.12549]
[1731513056172,0.12549,216.08,215.83,0.12549]
[1731513056173,20.0,216.05,215.84,0.92613327]
[1731513056371,20.4495152,216.09,215.87,23.776884]
[1731513056575,20.0,216.06,215.87,23.776884]
[1731513056793,20.0,216.04,215.87,23.776884]
[1731513056970,20.0,216.04,215.88,0.12549]
[1731513057163,36.76885456,216.15,215.88,0.12549]
[1731513057164,4.44629037,216.18,216.12,161.6504848]
[1731513057359,36.76885456,216.12,215.9,43.776884]
[1731513057566,36.76885456,216.14,215.91,0.12549]
[1731513057767,36.76885456,216.12,215.91,0.12549]
[1731513058177,36.76885456,216.1,215.89,30.0293]
[1731513058485,36.76885456,216.12,215.92,23.776884]
[1731513058684,20.0,216.11,215.92,23.776884]
[1731513058864,36.76885456,216.14,215.92,23.776884]
[1731513059061,36.76885456,216.14,215.93,20.0]
[1731513059266,36.76885456,216.12,215.94,23.776884]
[1731513060067,36.76885456,216.14,215.95,0.12549]
[1731513060260,4.6258,216.18,215.94,23.776884]
[1731513060261,36.76885456,216.1,215.94,23.776884]
[1731513060456,36.76885456,216.08,215.89,30.0293]
[1731513060663,20.0,216.05,215.89,30.0293]
[1731513061066,20.2,216.17,215.89,30.0293]
[1731513061267,20.0,216.05,215.89,30.0293]
[1731513062383,20.0,216.0,215.89,30.0293]
[1731513062588,20.0,215.98,215.89,30.0293]
[1731513063173,20.0,216.0,215.89,30.0293]
[1731513063375,20.0,216.02,215.89,30.0293]
[1731513063967,36.76885456,216.01,215.89,30.0293]
[1731513064174,20.0,215.98,215.89,30.0293]
[1731513064691,20.0,215.98,215.8,33.079]
[1731513064871,36.76885456,215.97,215.8,33.079]
[1731513065179,20.0,215.98,215.8,33.079]
[1731513065574,20.0,216.02,215.8,33.179]
[1731513065786,0.1,216.12,215.83,5.39667561]
[1731513066086,36.76885456,216.1,215.85,0.1]
[1731513066284,4.627,216.12,215.85,0.1]
[1731513066285,41.39585456,216.12,215.86,11.30039]
[1731513066585,41.39585456,216.12,215.88,0.1]
[1731513066791,48.51588727,216.16,215.91,0.1]
[1731513066990,41.39515456,216.16,215.93,20.0]
[1731513067172,36.76885456,216.14,215.93,43.776884]
[1731513067488,36.76885456,216.07,215.9,23.776884]
[1731513067682,36.76885456,216.08,215.9,23.776884]
[1731513067889,36.76885456,216.08,215.91,0.12549]
[1731513068185,36.76885456,216.04,215.89,31.146]
[1731513068385,0.12549,216.07,215.89,31.146]
[1731513068386,36.76885456,216.0,215.89,31.146]
[1731513068885,20.0,215.97,215.89,31.146]
[1731513069086,0.1,216.06,215.89,31.146]
[1731513069087,20.0,216.01,215.89,31.146]
[1731513069397,36.76885456,216.02,215.89,31.146]
[1731513069689,20.0,215.99,215.89,31.146]
[1731513069887,20.0,216.03,215.89,31.146]
[1731513070089,4.6284,216.06,215.89,31.146]
[1731513070090,20.0,216.01,215.89,31.146]
[1731513070279,20.0,215.99,215.89,31.146]
[1731513070672,41.39685456,216.08,215.9,23.902374]
[1731513071076,41.39675456,216.08,215.9,23.902374]
[1731513071294,36.76885456,216.0,215.89,31.146]
[1731513071677,36.76885456,216.02,215.89,31.146]
[1731513071986,36.76885456,216.0,215.89,31.146]
[1731513072191,36.89434456,215.98,215.82,12.1768]
[1731513072377,36.76885456,216.04,215.82,12.1768]
[1731513072378,36.76885456,215.92,215.82,12.1768]
[1731513072571,36.76885456,215.92,215.8,32.5298]
[1731513072572,4.57493711,216.05,215.8,32.5298]
[1731513072768,23.776884,216.07,215.8,32.5298]
[1731513072769,36.76885456,216.03,215.8,32.5298]
[1731513072974,36.76885456,216.05,215.81,11.14279638]
[1731513073183,36.76885456,216.03,215.82,0.12549]
[1731513073376,36.76885456,215.99,215.8,32.5298]
[1731513073698,36.76885456,215.95,215.8,32.5298]
[1731513074185,36.76885456,215.91,215.8,32.5298]
[1731513074388,20.0,215.92,215.8,32.5298]
[1731513074697,20.0,215.9,215.8,32.5298]
[1731513075291,36.76885456,215.95,215.8,32.5298]
[1731513075292,20.0,215.94,215.8,32.5298]
[1731513075488,36.76885456,215.93,215.8,32.5298]
[1731513075674,20.0,215.92,215.8,32.5298]
[1731513075991,36.76885456,215.91,215.8,32.5298]
[1731513076199,20.0,215.9,215.8,32.5298]
[1731513076686,36.76885456,215.91,215.8,32.5298]
[1731513077395,36.76885456,215.93,215.8,32.5298]
[1731513077597,36.76885456,215.91,215.8,32.5298]
[1731513077776,36.76885456,215.89,215.8,32.5298]
[1731513078097,36.76885456,215.88,215.8,32.5298]
[1731513078273,0.12549,215.89,215.8,32.5298]
[1731513078596,36.76885456,215.88,215.8,32.5298]
[1731513079095,36.76885456,215.89,215.8,32.5298]
[1731513079496,36.76885456,215.87,215.8,32.5298]
[1731513079672,4.75699,215.91,215.8,32.5298]
[1731513079992,36.76885456,215.84,215.74,12.3718]
[1731513080378,36.76885456,215.8,215.71,32.2565]
[1731513080567,36.76885456,215.84,215.71,32.2565]
[1731513080973,0.12549,215.85,215.71,32.2565]
[1731513081598,0.12549,215.85,215.72,20.12549]
[1731513081895,0.1,216.02,215.72,20.12549]
[1731513081896,0.1,216.06,215.73,23.776884]
[1731513082071,41.39875456,215.99,215.78,13.0034]
[1731513082401,36.76885456,215.99,215.79,29.80608839]
[1731513082574,41.39875456,215.99,215.8,0.12549]
[1731513082770,36.76885456,215.97,215.79,29.80608839]
[1731513082970,36.76885456,215.97,215.79,23.776884]
[1731513083188,36.76885456,215.97,215.8,0.12549]
[1731513083573,4.6304,215.96,215.8,0.12549]
[1731513083780,4.6304,215.96,215.79,23.776884]
[1731513083975,36.76885456,215.91,215.78,13.0034]
[1731513084308,36.76885456,215.87,215.71,44.5796]
[1731513084477,36.76885456,215.83,215.71,44.5796]
[1731513084683,36.76885456,215.85,215.71,44.5796]
[1731513084994,36.76885456,215.87,215.71,44.5796]
[1731513085180,36.76885456,215.89,215.71,44.5796]
[1731513085493,36.76885456,215.87,215.71,44.5796]
[1731513085687,41.40125456,215.87,215.71,44.5796]
[1731513086092,36.76885456,215.85,215.71,44.5796]
[1731513086776,36.76885456,215.81,215.71,44.5796]
[1731513087472,0.12549,215.8,215.71,32.2565]
[1731513087676,16.4156,215.84,215.64,13.0484]
[1731513087677,36.76885456,215.79,215.64,45.9935]
[1731513087897,36.76885456,215.75,215.64,45.9935]
[1731513088095,36.76885456,215.79,215.64,45.9935]
[1731513088295,36.76885456,215.81,215.64,45.9935]
[1731513088794,36.76885456,215.79,215.64,45.9935]
[1731513089000,36.76885456,215.77,215.64,45.9935]
[1731513089209,0.12549,215.81,215.64,45.9935]
[1731513089377,36.76885456,215.79,215.64,45.9935]
[1731513089876,36.76885456,215.77,215.64,45.9935]
[1731513090079,36.76885456,215.75,215.64,45.9935]
[1731513090604,36.96885456,215.82,215.59,12.0702]
[1731513090605,36.76885456,215.67,215.59,12.0702]
[1731513090908,36.76885456,215.63,215.56,32.7752]
[1731513091403,36.76885456,215.67,215.56,32.7752]
[1731513091579,36.76885456,215.69,215.56,32.7752]
[1731513091781,36.76885456,215.65,215.56,32.7752]
[1731513091998,36.76885456,215.67,215.56,32.7752]
[1731513092587,36.76885456,215.64,215.56,32.7752]
[1731513092888,36.76885456,215.68,215.56,32.7752]
[1731513093597,36.76885456,215.72,215.56,32.7752]
[1731513093817,13.2763,215.79,215.56,32.7752]
[1731513093818,36.76885456,215.74,215.57,23.902374]
[1731513094099,36.76885456,215.76,215.59,23.776884]
[1731513094505,11.6829,215.84,215.57,0.12549]
[1731513094506,36.76885456,215.8,215.58,32.8038]
[1731513094808,36.76885456,215.82,215.6,0.12549]
[1731513095184,36.76885456,215.82,215.62,0.12549]
[1731513095389,33.29585874,216.3,215.63,23.776884]
[1731513095390,36.76885456,215.84,215.63,23.776884]
[1731513095684,36.76885456,215.8,215.63,23.776884]
[1731513095991,36.76885456,215.8,215.62,0.12549]
[1731513095992,36.76885456,215.72,215.58,12.8038]
[1731513097084,4.57536223,215.81,215.58,12.8038]
[1731513097281,36.76885456,215.8,215.58,12.8038]
[1731513097488,36.76885456,215.82,215.59,0.12549]
[1731513097899,36.76885456,215.82,215.59,23.902374]
[1731513098083,36.76885456,215.78,215.59,23.902374]
[1731513098481,36.76885456,215.8,215.59,23.902374]
[1731513098904,36.76885456,215.78,215.59,23.902374]
[1731513099108,36.76885456,215.72,215.58,12.8038]
[1731513100307,36.76885456,215.68,215.58,12.8038]
[1731513100607,36.89434456,215.7,215.58,12.8038]
[1731513100809,36.76885456,215.72,215.58,12.8038]
[1731513101831,36.76885456,215.7,215.58,12.8038]
[1731513102414,36.76885456,215.68,215.58,12.8038]
[1731513102909,0.12549,215.69,215.58,12.8038]
[1731513103306,0.12549,215.67,215.55,0.4495152]
[1731513103614,0.12549,215.65,215.55,0.4495152]
[1731513104414,4.6373,215.64,215.55,0.4495152]
[1731513105399,36.76885456,215.59,215.55,0.4495152]
[1731513105594,0.12549,215.58,215.55,0.4495152]
[1731513105799,36.76885456,215.59,215.55,0.4495152]
[1731513106405,36.76885456,215.57,215.55,0.4495152]
[1731513106613,0.12549,215.56,215.55,0.4495152]
[1731513106917,0.12549,215.56,215.34,12.7614]
[1731513106918,0.22549,215.53,215.34,12.7614]
[1731513107220,0.22549,215.53,215.33,31.8201152]
[1731513107221,36.76885456,215.43,215.33,0.4495152]
[1731513107422,36.76885456,215.45,215.33,0.4495152]
[1731513107595,0.12549,215.44,215.33,0.4495152]
[1731513107999,36.76885456,215.45,215.33,0.4495152]
[1731513108211,0.12549,215.44,215.33,0.4495152]
[1731513108388,4.76719,215.44,215.33,0.4495152]
[1731513108592,36.76885456,215.43,215.33,0.4495152]
[1731513109006,0.12549,215.42,215.33,0.4495152]
[1731513109210,36.76885456,215.43,215.33,0.4495152]
[1731513109418,4.6417,215.44,215.33,0.4495152]
[1731513109619,0.12549,215.43,215.33,0.4495152]
[1731513109996,36.76885456,215.49,215.33,0.4495152]
[1731513110309,36.76885456,215.47,215.33,0.4495152]
[1731513110494,0.12549,215.46,215.33,0.4495152]
[1731513111515,23.902374,215.46,215.33,0.4495152]
[1731513111697,7.00639267,215.48,215.33,0.4495152]
[1731513111895,36.76885456,215.51,215.33,0.4495152]
[1731513112093,0.12549,215.48,215.33,0.4495152]
[1731513112291,36.76885456,215.49,215.34,43.8415]
[1731513112713,0.12549,215.49,215.34,43.8415]
[1731513112916,7.00584838,215.5,215.34,43.8415]
[1731513113097,0.12549,215.5,215.34,43.8415]
[1731513113298,23.902374,215.5,215.34,43.8415]
[1731513113498,28.542874,215.5,215.34,43.8415]
[1731513113702,36.76885456,215.55,215.35,23.902374]
[1731513114209,0.12549,215.54,215.35,23.902374]
[1731513114408,36.76885456,215.55,215.35,23.902374]
[1731513114710,0.12549,215.52,215.35,23.902374]
[1731513114910,4.6396,215.54,215.35,23.902374]
[1731513115209,23.776884,215.54,215.35,23.902374]
[1731513115410,7.00015506,215.55,215.35,23.902374]
[1731513115630,0.12549,215.54,215.35,23.902374]
[1731513116799,0.1,215.59,215.37,23.902374]
[1731513116800,36.76885456,215.59,215.37,23.902374]
[1731513117118,18.555364,215.63,215.41,23.776884]
[1731513117308,36.76885456,215.63,215.45,12.2509]
[1731513117494,12.7447,215.7,215.45,12.2509]
[1731513117495,36.76885456,215.61,215.45,12.2509]
[1731513117907,0.12549,215.56,215.45,12.2509]
[1731513118112,0.12549,215.54,215.45,12.2509]
[1731513118321,36.76885456,215.57,215.45,12.2509]
[1731513118514,36.76885456,215.61,215.45,12.2509]
[1731513118695,36.76885456,215.57,215.45,12.2509]
[1731513118896,41.40775456,215.57,215.45,12.2509]
[1731513119415,0.12549,215.56,215.45,12.2509]
[1731513119603,4.638,215.61,215.45,12.2509]
[1731513119919,11.64939757,215.65,215.46,23.902374]
[1731513120107,43.78105213,215.65,215.46,23.776884]
[1731513120303,0.12549,215.6,215.45,12.2509]
[1731513120733,18.30262984,215.65,215.46,0.12549]
[1731513120734,36.76885456,215.63,215.46,0.12549]
[1731513121022,36.76885456,215.67,215.46,23.902374]
[1731513121321,0.12549,215.6,215.45,12.2509]
[1731513121513,36.76885456,215.52,215.45,12.2509]
[1731513121698,0.12549,215.47,215.37,12.4071]
[1731513122099,0.12549,215.47,215.33,0.4495152]
[1731513122100,0.12549,215.39,215.33,0.4495152]
[1731513122325,36.76885456,215.34,215.33,0.4495152]
[1731513122699,0.22549,215.42,215.33,0.4495152]
[1731513122917,0.1,215.43,215.33,0.4495152]
[1731513122918,0.12549,215.37,215.33,0.4495152]
[1731513123308,0.12549,215.35,215.33,0.4495152]
[1731513123807,37.53913473,215.4,215.33,0.4495152]
[1731513124007,41.2578178,215.42,215.33,0.4495152]
[1731513124201,36.76885456,215.44,215.33,0.4495152]
[1731513124413,4.6408,215.48,215.34,12.3413]
[1731513124414,36.76885456,215.48,215.34,12.3413]
[1731513125022,0.12549,215.47,215.34,12.3413]
[1731513125318,36.76885456,215.42,215.34,12.3413]
[1731513125527,0.12549,215.39,215.33,0.4495152]
[1731513125822,0.12549,215.37,215.33,0.4495152]
[1731513126210,0.12549,215.35,215.33,0.4495152]
[1731513126607,0.12549,215.37,215.33,0.4495152]
[1731513126920,4.76839,215.39,215.33,0.4495152]
[1731513127226,0.12549,215.37,215.33,0.4495152]
[1731513127430,23.902374,215.37,215.33,0.4495152]
[1731513127613,36.76885456,215.44,215.33,0.4495152]
[1731513127818,23.776884,215.45,215.33,0.4495152]
[1731513128125,36.76885456,215.46,215.33,0.4495152]
[1731513128320,0.1,215.46,215.33,0.4495152]
[1731513128627,0.12549,215.4,215.33,0.4495152]
[1731513129008,0.12549,215.38,215.33,0.4495152]
[1731513129338,23.902374,215.38,215.33,0.4495152]
[1731513129522,60.67122856,215.38,215.33,0.4495152]
[1731513129724,0.12549,215.38,215.33,0.4495152]
[1731513129908,0.12549,215.39,215.33,0.4495152]
[1731513130226,23.902374,215.39,215.33,0.4495152]
[1731513130431,23.902374,215.37,215.33,0.4495152]
[1731513130610,0.12549,215.35,215.33,0.4495152]
[1731513131219,23.902374,215.34,215.33,0.4495152]
[1731513132534,36.76885456,215.36,215.33,0.4495152]
[1731513132707,23.776884,215.35,215.33,0.4495152]
[1731513132916,7.03832542,215.36,215.33,0.4495152]
[1731513133217,0.12549,215.35,215.33,0.4495152]
[1731513133727,0.12549,215.37,215.33,0.4495152]
[1731513134114,24.6987,215.43,215.33,0.4495152]
[1731513134115,36.76885456,215.42,215.33,0.4495152]
[1731513134426,0.2,215.57,215.33,0.4495152]
[1731513134627,36.76885456,215.38,215.33,0.4495152]
[1731513134829,0.12549,215.35,215.33,0.4495152]
[1731513135007,4.76929,215.34,215.33,0.4495152]
[1731513135209,41.53814456,215.34,215.33,0.4495152]
[1731513135909,65.31502856,215.34,215.33,0.4495152]
[1731513136418,7.03387707,215.37,215.33,0.4495152]
[1731513136608,36.76885456,215.36,215.33,0.4495152]
[1731513137020,4.47566101,215.39,215.33,0.4495152]
[1731513137226,36.76885456,215.4,215.33,0.4495152]
[1731513137434,36.76885456,215.38,215.33,0.4495152]
[1731513137610,36.76885456,215.34,215.33,0.4495152]
[1731513138032,36.89434456,215.34,215.33,0.4495152]
[1731513138209,36.99434456,215.34,215.33,0.4495152]
[1731513138412,36.89434456,215.34,215.33,0.4495152]
[1731513138718,0.1,215.29,215.13,12.7987]
[1731513138923,0.12549,215.26,215.13,12.7987]
[1731513139127,0.12549,215.24,215.13,12.7987]
[1731513139433,4.645,215.29,215.13,12.7987]
[1731513139625,36.86885456,215.31,215.13,12.7987]
[1731513139626,36.76885456,215.31,215.13,12.7987]
[1731513139826,4.644,215.33,215.13,12.7987]
[1731513139827,36.76885456,215.29,215.13,12.7987]
[1731513140133,4.744,215.33,215.13,12.7987]
[1731513140134,36.76885456,215.17,215.13,12.7987]
[1731513140307,36.76885456,215.19,215.12,0.4495152]
[1731513140513,0.12549,215.2,215.12,0.4495152]
[1731513141028,0.12549,215.16,215.12,0.4495152]
[1731513141338,60.87122856,215.13,215.12,0.4495152]
[1731513141635,60.87122856,215.13,214.83,33.2821]
[1731513141636,36.76885456,215.04,214.83,33.2821]
[1731513141838,36.76885456,215.06,214.85,0.1]
[1731513142333,0.12549,215.05,214.83,37.91846066]
[1731513142517,36.76885456,215.06,214.85,0.1]
[1731513142718,36.76885456,215.08,214.85,0.1]
[1731513142914,0.12549,215.07,214.85,0.1]
[1731513143113,0.12549,215.05,214.83,37.91846066]
[1731513143311,36.76885456,215.04,214.85,0.1]
[1731513143510,4.6487,215.11,214.85,0.1]
[1731513143511,36.76885456,215.06,214.85,0.1]
[1731513143824,36.76885456,214.98,214.83,33.2821]
[1731513144135,60.54573856,215.05,214.83,33.2821]
[1731513144136,36.76885456,214.94,214.83,33.2821]
[1731513144533,36.76885456,214.97,214.83,33.2821]
[1731513144920,36.76885456,214.99,214.83,33.2821]
[1731513145514,36.76885456,214.94,214.83,33.2821]
[1731513145738,36.76885456,215.0,214.83,33.2821]
[1731513145920,36.76885456,214.96,214.83,33.2821]
[1731513146120,36.76885456,214.98,214.83,33.2821]
[1731513146322,36.76885456,215.02,214.83,33.3821]
[1731513146527,36.76885456,215.06,214.91,0.12549]
[1731513146725,0.12549,215.06,214.83,33.3821]
[1731513147042,0.77383701,215.1,214.91,23.902374]
[1731513147537,4.6484,215.13,214.91,23.902374]
[1731513147741,43.8124532,215.12,214.92,0.1]
[1731513147926,25.15124827,215.19,214.91,23.902374]
[1731513147927,36.76885456,215.14,214.95,0.1]
[1731513148239,36.76885456,215.18,214.98,0.1]
[1731513148544,36.76885456,215.16,214.98,0.22549]
[1731513148729,36.76885456,215.18,214.98,0.22549]
[1731513149042,0.77372673,215.23,214.99,0.2]
[1731513149043,36.76885456,215.2,214.99,0.2]
[1731513149344,36.76885456,215.24,215.05,0.1]
[1731513149543,36.76885456,215.26,215.08,0.1]
[1731513149840,36.76885456,215.24,215.06,0.12549]
[1731513150147,36.76885456,215.24,215.06,0.1]
[1731513150436,36.76885456,215.24,215.05,0.1]
[1731513150741,36.76885456,215.24,215.05,0.2]
[1731513150946,36.76885456,215.24,215.06,0.12549]
[1731513151437,36.76885456,215.22,215.03,23.776884]
[1731513151625,36.76885456,215.22,215.04,0.12549]
[1731513151826,36.76885456,215.25,215.05,0.1]
[1731513152026,36.76885456,215.25,215.05,0.2]
[1731513152246,36.76885456,215.25,215.06,0.12549]
[1731513152945,5.340144,215.32,215.05,0.2]
[1731513152946,36.76885456,215.23,215.05,0.1]
[1731513153125,36.76885456,215.21,215.0,4.65314203]
[1731513153328,36.76885456,215.17,214.95,0.1]
[1731513153522,36.76885456,215.13,214.97,0.22549]
[1731513153722,36.76885456,215.17,214.97,0.1]
[1731513154254,36.76885456,215.22,215.01,0.1]
[1731513154550,36.76885456,215.24,215.04,0.2]
[1731513154721,36.76885456,215.26,215.09,0.1]
[1731513155039,36.76885456,215.26,214.98,0.12549]
[1731513155040,36.76885456,215.19,215.0,0.1]
[1731513155240,36.76885456,215.19,214.98,0.1]
[1731513155241,36.76885456,215.21,215.02,0.1]
[1731513155427,36.76885456,215.19,215.01,0.12549]
[1731513155832,36.76885456,215.19,215.02,0.1]
[1731513156141,7.07541615,215.23,214.97,4.58422959]
[1731513156142,36.76885456,215.17,215.0,0.1]
[1731513156442,36.76885456,215.17,214.97,0.1]
[1731513156443,36.76885456,215.17,214.98,0.1]
[1731513157029,36.76885456,215.17,214.96,47.80289931]
[1731513157250,36.76885456,215.13,214.96,43.3308]
[1731513157546,36.76885456,215.17,214.96,43.4308]
[1731513157747,36.76885456,215.15,214.97,0.1]
[1731513158057,23.776884,215.19,214.97,0.12549]
[1731513158058,36.76885456,215.17,214.97,0.12549]
[1731513158228,36.76885456,215.15,214.97,0.12549]
[1731513158544,36.76885456,215.13,214.97,0.12549]
[1731513158748,36.76885456,215.04,214.9,0.4495152]
[1731513159052,36.86885456,215.16,214.9,0.4495152]
[1731513159053,36.76885456,215.02,214.9,0.4495152]
[1731513159350,36.76885456,215.06,214.9,0.4495152]
[1731513159646,36.76885456,215.08,214.91,0.12549]
[1731513159850,36.76885456,215.08,214.9,0.4495152]
[1731513160154,36.76885456,215.04,214.91,32.9989]
[1731513160447,36.76885456,215.06,214.91,32.9989]
[1731513160648,23.776884,215.12,214.93,23.776884]
[1731513160834,36.76885456,215.1,214.93,23.776884]
[1731513161038,36.76885456,215.12,214.94,0.12549]
[1731513161254,36.76885456,215.1,214.94,0.12549]
[1731513162760,36.76885456,215.14,214.96,0.12549]
[1731513163051,36.76885456,215.1,214.93,20.0]
[1731513163262,36.76885456,215.1,214.92,13.2574]